{"text_format":"1","workbook":"xlsx","n_sheets":12,"sheets":["Outline","Introduction","Instructions","Foire aux questions","Directives pour la CMMV","Gestion de programme ","Mise en œuvre de programme ","Résultats de programme ","Résumé des notes","Étapes suivantes","Bibliographie","Acronymes"],"not_rendered":{"charts":6,"images":0,"macros":1,"external_links":0,"defined_names":19,"comments":0,"pivot_tables":0},"unopened":[],"bounds":{"document_bytes":16777216,"sheet_cells":100000,"rows_first":2000,"rows_last":500,"rows_between":2000,"halvings":0,"cell_chars":16384,"cell_head_chars":4096},"cells_cut":0,"cells_raw":0,"read":"whole","date_system":"1900"}

{"sheet":"Outline","index":0,"n_rows":46,"n_cols":6,"rows_kept":46,"cut":false,"hidden":true,"merged":[[38,0,45,0],[38,1,41,1],[42,1,45,1],[13,0,37,0],[16,1,20,1],[21,1,26,1],[27,1,29,1],[35,1,37,1],[30,1,34,1],[13,1,15,1],[0,3,1,5],[3,1,5,1],[6,1,9,1],[10,1,11,1],[3,0,12,0]]}
[]
[]
["DOMAIN","FUNCTION",{"$f":"#REF!","v":{"$error":"#REF!"}},{"$f":"#REF!","v":{"$error":"#REF!"}},"REFERENCE","REVIEWER'S COMMENTS"]
["Program Management","1. Leadership & advocacy","1.1","National MMC Strategy","A Framework for VMMC 2021 Policy Brief, WHO and UNAIDS, 2016\nJoint Strategic Action Framework to Accelerate the Scale-up of VMMC for HIV Prevention in ESA 2012-2016, WHO and UNAIDS, 2007"]
[null,null,"1.2","Champions","A Framework for VMMC 2021 Policy Brief, WHO and UNAIDS, 2016\nJoint Strategic Action Framework to Accelerate the Scale-up of VMMC for HIV Prevention in ESA 2012-2016, WHO and UNAIDS, 2008"]
[null,null,"1.3","Advocacy strategy and toolkit","A Framework for VMMC 2021 Policy Brief, WHO and UNAIDS, 2016\nJoint Strategic Action Framework to Accelerate the Scale-up of VMMC for HIV Prevention in ESA 2012-2016, WHO and UNAIDS, 2009"]
[null,"2. Coordination & accountability","2.1","National MMC Operational Plan","A Framework for VMMC 2021 Policy Brief, WHO and UNAIDS, 2016\nJoint Strategic Action Framework to Accelerate the Scale-up of VMMC for HIV Prevention in ESA 2012-2016, WHO and UNAIDS, 2010"]
[null,null,"2.2","Technical Working Group (TWG) for MMC","A Framework for VMMC 2021 Policy Brief, WHO and UNAIDS, 2016\nJoint Strategic Action Framework to Accelerate the Scale-up of VMMC for HIV Prevention in ESA 2012-2016, WHO and UNAIDS, 2011"]
[null,null,"2.3","Stakeholder coordination (including traditional sector and civil society)","A Framework for VMMC 2021 Policy Brief, WHO and UNAIDS, 2016\nJoint Strategic Action Framework to Accelerate the Scale-up of VMMC for HIV Prevention in ESA 2012-2016, WHO and UNAIDS, 2012"]
[null,null,"2.4","Coordination with other Ministries","Sustainability Transition Implementation Plan 2019 - 2021 for VMMC. Zimbabwe Ministry pf Health & Child Care"]
[null,"3. Policies & legislative environment","3.1","National MMC Implementation guidelines","South African National Guidelines for MMC, 2016, Department of Health for the Republic of South Africa\nhttps://www.who.int/hiv/pub/malecircumcision/male-circumcision-guide-2018/en/"]
[null,null,"3.2","Policy enabling environment for MMC","Manual for MMC, Chapter 2: An opportunity for expanded services for adolescent boys and men. 2018. WHO"]
[null,"4. Financing","4.1","Resource mobilization","Joint Strategic Action Framework to Accelerate the Scale-up of VMMC for HIV Prevention in ESA 2012-2016, WHO and UNAIDS, 2012\nManual for MMC, Chapter 2: An opportunity for expanded services for adolescent boys and men. 2018. WHO\nPolicy Guidelines for Sustaining Medical Male Circumcision Services in Kenya, Kenya Ministry of Health, 2018"]
["Program Implementation","5. Targeting and planning","5.1","Demographic assessment (population size estimation and mapping areas of unmet need)"]
[null,null,"5.2","Needs assessment"]
[null,null,"5.3","Target setting"]
[null,"6. Service delivery factors","6.1","Availability of services (operating hours)","Manual for MMC, Chapter 2: An opportunity for expanded services for adolescent boys and men. 2018. WHO"]
[null,null,"6.2","Accessibility of services (transportation)"]
[null,null,"6.3","Trained and capacitated healthcare workers "]
[null,null,"6.4","Facilities, supplies and infrastructure","MMC Manual, Chapter 3: Facilities, Supplies and Infrastructure for MMC Programs. WHO, 2018"]
[null,null,"6.5","Health workforce planning"]
[null,"7. Clinical package of services","7.1","Developmentally targeted and appropriate care","Manual for MMC, Chapter 2: An opportunity for expanded services for adolescent boys and men. 2018. WHO"]
[null,null,"7.2","Circumcision","South African National Guidelines for MMC, 2016. Department of Health for the Republic of South Africa"]
[null,null,"7.3","Condom promotion and provision","Manual for MMC, Chapter 2: An opportunity for expanded services for adolescent boys and men. 2018. WHO"]
[null,null,"7.4","STI screening, counselling and treatment","Manual for MMC, Chapter 2: An opportunity for expanded services for adolescent boys and men. 2018. WHO"]
[null,null,"7.5","HIV testing services (HTS) and linkage to care","Manual for MMC, Chapter 2: An opportunity for expanded services for adolescent boys and men. 2018. WHO"]
[null,null,"7.6","General health screening (diabetes, hypertension)"]
[null,"8. Behavioural interventions","8.1","Demand generation "]
[null,null,"8.2","Social and behaviour change communication (SBCC)"]
[null,null,"8.3","Engagement with primary and secondary audiences","A Framework for VMMC 2021 Policy Brief, WHO and UNAIDS, 2016\nJoint Strategic Action Framework to Accelerate the Scale-up of VMMC for HIV Prevention in ESA 2012-2016, WHO and UNAIDS, 2010"]
[null,"9. Monitoring and evaluation","9.1","Research"]
[null,null,"9.2","Routine monitoring"]
[null,null,"9.3","Data flow and reporting guidelines","MMC Manual, Chapter 4: Recordkeeping, reporting and quality assurance. WHO, 2018"]
[null,null,"9.4","Integrated health  patient tracking system","A Framework for VMMC 2021 Policy Brief, WHO and UNAIDS, 2016\nJoint Strategic Action Framework to Accelerate the Scale-up of VMMC for HIV Prevention in ESA 2012-2016, WHO and UNAIDS, 2010"]
[null,null,"9.5","Referral and linkage tracking"]
[null,"10. Quality ","10.1","Compliance and due diligence assessments"]
[null,null,"10.2","Adverse event (AE) surveillance system","MMC Manual, Chapter 4: Recordkeeping, reporting and quality assurance. WHO, 2018"]
[null,null,"10.3","Quality improvement and assurance","MMC Manual, Chapter 4: Recordkeeping, reporting and quality assurance. WHO, 2018"]
["Program Outcomes","11. Impact","11.1","National MC prevalence (15-24)","UNAIDS (2018) VMMC Scorecard"]
[null,null,"11.2","National MC prevalence (15-49)","UNAIDS (2018) VMMC Scorecard"]
[null,null,"11.3","Percentage of annual MMC target achieved","UNAIDS (2018) VMMC Scorecard"]
[null,null,"11.4","Percentage increase in the number of MMCs in the two most recent years","UNAIDS (2018) VMMC Scorecard"]
[null,"12. Sustainability","12.1","Planning for sustainability","Sustainability Transition Implementation Plan 2019 - 2021 for VMMC. Zimbabwe Ministry of Health & Child Care\nPolicy Guidelines for Sustaining Medical Male Circumcision Services in Kenya. National AIDS & STI Control Program, Ministry of Health, 2018"]
[null,null,"12.2","Local ownership and accountability","Sustainability Transition Implementation Plan 2019 - 2021 for VMMC. Zimbabwe Ministry of Health & Child Care\nPolicy Guidelines for Sustaining Medical Male Circumcision Services in Kenya. National AIDS & STI Control Program, Ministry of Health, 2019"]
[null,null,"12.3","Integrated and routinized services","Sustainability Transition Implementation Plan 2019 - 2021 for VMMC. Zimbabwe Ministry of Health & Child Care\nPolicy Guidelines for Sustaining Medical Male Circumcision Services in Kenya. National AIDS & STI Control Program, Ministry of Health, 2020"]
[null,null,"12.4","Equitable services"]

{"sheet":"Introduction","index":1,"n_rows":2,"n_cols":3,"rows_kept":2,"cut":false,"hidden":false,"merged":[[1,2,1,22]]}
[]
[null,null,"Que sont les Outils d’auto-évaluation pour la prévention du VIH (OAEP) ?"]

{"sheet":"Instructions","index":2,"n_rows":3,"n_cols":3,"rows_kept":3,"cut":false,"hidden":false,"merged":[[2,2,2,17]]}
[]
[]
[null,null,"Comment compléter l’OEAP"]

{"sheet":"Foire aux questions","index":3,"n_rows":2,"n_cols":2,"rows_kept":2,"cut":false,"hidden":false,"merged":[[1,1,1,21]]}
[]
[null,"Foire aux questions"]

{"sheet":"Directives pour la CMMV","index":4,"n_rows":2,"n_cols":2,"rows_kept":2,"cut":false,"hidden":false,"merged":[[1,1,1,21]]}
[]
[null,"Programme de circoncision masculine médicale volontaire"]

{"sheet":"Gestion de programme ","index":5,"n_rows":89,"n_cols":16,"rows_kept":89,"cut":false,"hidden":false,"merged":[[77,9,83,9],[50,2,54,2],[51,9,54,9],[55,2,61,2],[55,3,55,4],[55,9,61,9],[63,2,70,2],[63,9,70,9],[50,3,50,4],[71,3,71,4],[71,2,75,2],[71,9,75,9],[77,2,83,2],[77,3,77,4],[63,3,63,4],[42,2,49,2],[42,3,42,4],[42,9,49,9],[12,2,17,2],[12,3,12,4],[12,9,17,9],[18,2,27,2],[18,3,18,4],[18,9,27,9],[28,2,33,2],[28,3,28,4],[28,9,33,9],[35,2,41,2],[35,3,35,4],[35,9,41,9],[1,2,1,9],[3,3,3,4],[4,2,4,10],[5,2,11,2],[5,3,5,4],[5,9,11,9]]}
[]
[null,null,"Gestion de programme"]
[]
[null,null,"Élément","Critères",null,"S/O","Absent","Présent mais non optimal","Présent et fonctionnel","Moyenne de l’élément","Commentaires (le cas échéant)","Absent","Present","Optimal","Average","Sustainability Single Figure"]
[null,null,"Leadership et défense des intérêts"]
[null,null,"Stratégie nationale de CMMV","Des directives et objectifs stratégiques nationaux sont en place :",null,null,null,null,null,{"$f":"IFERROR(O6,\"-\")","v":"-"},null,null,null,null,{"$f":"IFERROR(ROUND(AVERAGEIF(L7:N12,\"<>0\",L7:N12),0),\"-\")","v":"-"}]
[null,null,null,"○","Les directives et objectifs stratégiques sont à jour (actualisés tous les 3 à 5 ans)",null,null,null,null,null,null,{"$f":"IF(ISBLANK(G7),0,1)","v":0},{"$f":"IF(ISBLANK(H7),0,3)","v":0},{"$f":"IF(ISBLANK(I7),0,5)","v":0}]
[null,null,null,"○","Les objectifs stratégiques sont alignés sur des normes mondiales, nationales et infranationales",null,null,null,null,null,null,0,0,0]
[null,null,null,"○","Toutes les parties prenantes s’engagent à mettre en œuvre les stratégies nationales ",null,null,null,null,null,null,0,0,0]
[null,null,null,"○","La stratégie énonce des buts et objectifs clairs pour la mise à l’échelle, avec une vision d’avenir pour la durabilité",null,null,null,null,null,null,0,0,0]
[null,null,null,"○","Il existe une forte réponse programmatique aux buts et objectifs stratégiques",null,null,null,null,null,null,0,0,0]
[null,null,null,"○","La théorie du changement identifie la contribution de chaque partie prenante et décrit les facteurs de réussite, les activités et les parties prenantes",null,null,null,null,null,null,0,0,0]
[null,null,"Champions","Des champions aux niveaux national et infranational sont identifiés, équipés et soutenus pour plaider en faveur de la CMMV : ",null,null,null,null,null,{"$f":"IFERROR(O13,\"-\")","v":"-"},null,null,0,null,{"$f":"IFERROR(ROUND(AVERAGEIF(L14:N18,\"<>0\",L14:N18),0),\"-\")","v":"-"}]
[null,null,null,"○","Ils représentent divers secteurs (santé, éducation, groupes communautaires, traditionnels ou religieux) ",null,null,null,null,null,null,{"$f":"IF(ISBLANK(G14),0,1)","v":0},{"$f":"IF(ISBLANK(H14),0,3)","v":0},{"$f":"IF(ISBLANK(I14),0,5)","v":0}]
[null,null,null,"○","Ils reçoivent des informations leur permettant de plaider efficacement en faveur de la CMMV",null,null,null,null,null,null,{"$f":"IF(ISBLANK(G15),0,1)","v":0},{"$f":"IF(ISBLANK(H15),0,3)","v":0},{"$f":"IF(ISBLANK(I15),0,5)","v":0}]
[null,null,null,"○","Ils participent à des réunions exclusives pour discuter de bonnes pratiques et faire le point sur les progrès accomplis",null,null,null,null,null,null,{"$f":"IF(ISBLANK(G16),0,1)","v":0},{"$f":"IF(ISBLANK(H16),0,3)","v":0},{"$f":"IF(ISBLANK(I16),0,5)","v":0}]
[null,null,null,"○","Ils reçoivent une formation de sensibilisation et un soutien de la part du programme local de CMMV",null,null,null,null,null,null,{"$f":"IF(ISBLANK(G17),0,1)","v":0},{"$f":"IF(ISBLANK(H17),0,3)","v":0},0]
[null,null,null,"○","Ils sont mobilisés et disposent d’une plateforme pour représenter le programme local de CMMV",null,null,null,null,null,null,0,0,0]
[null,null,"Planification pour la durabilité","Une stratégie nationale de durabilité est en place et adoptée à tous les niveaux :",null,null,null,null,null,{"$f":"IFERROR(O19,\"-\")","v":"-"},null,null,null,null,{"$f":"IFERROR(ROUND(AVERAGEIF(L20:N28,\"<>0\",L20:N28),0),\"-\")","v":"-"}]
[null,null,null,"○","Il existe un plan stratégique clairement articulé et un plan opérationnel chiffré pour assurer la transition vers la durabilité (couvrant les domaines suivants : gestion et coordination du programme, prestation de services de CMMV, qualité du programme, génération de la demande, information stratégique, financement du programme)",null,null,null,null,null,null,0,0,0]
[null,null,null,"○","La CMMV est intégrée à la stratégie nationale, à la stratégie de santé nationale et au processus de planification opérationnelle",null,null,null,null,null,null,0,0,0]
[null,null,null,"○","L’infrastructure et les ressources nationales de CMMV sont cartographiées pour informer la planification et la mise en œuvre ",null,null,null,null,null,null,0,0,0]
[null,null,null,"○","Le programme a accès à des informations stratégiques, notamment les performances du programme et les données financières, afin d’informer le suivi du programme ",null,null,null,null,null,null,0,0,0]
[null,null,null,"○","L’achat et la distribution de fournitures et d’équipements de CMMV font partie des systèmes nationaux d’achat et d’approvisionnement",null,null,null,null,null,null,0,0,0]
[null,null,null,"○","Système de gestion des déchets qui prend en charge la séparation, le stockage, le transport, le traitement et l’élimination de tous les déchets liés à la CMMV conformément aux directives nationales",null,null,null,null,null,null,0,0,0]
[null,null,null,"○","Le gouvernement a les moyens de gérer le programme de CMMV et de préserver la résilience du programme face aux changements (ex. : besoins/cibles/approches/fondements/processus)",null,null,null,null,null,null,0,0,0]
[null,null,null,"○","Il existe un plan de formation qui couvre tous les postes du personnel impliqués dans la mise en œuvre du programme national de CMMV à tous les niveaux du système de santé",null,null,null,null,null,null,0,0,0]
[null,null,null,"○","Il existe un plan d’assistance technique et sa mise en œuvre soutient le développement des capacités",null,null,null,null,null,null,0,0,0]
[null,null,"Stratégie de plaidoyer et boîte à outils","Une stratégie de plaidoyer et une boîte à outils sont élaborées, approuvées au niveau national et mises en œuvre :",null,null,null,null,null,{"$f":"IFERROR(O29,\"-\")","v":"-"},null,null,null,null,{"$f":"IFERROR(ROUND(AVERAGEIF(L30:N34,\"<>0\",L30:N34),0),\"-\")","v":"-"}]
[null,null,null,"○","Les supports sont régulièrement révisés",null,null,null,null,null,null,{"$f":"IF(ISBLANK(G30),0,1)","v":0},{"$f":"IF(ISBLANK(H30),0,3)","v":0},{"$f":"IF(ISBLANK(I30),0,5)","v":0}]
[null,null,null,"○","La stratégie communique tous les avantages de la CMMV (avantages pour les hommes, avantages pour les femmes, valeur ajoutée des autres services de santé)",null,null,null,null,null,null,0,0,0]
[null,null,null,"○","Les supports de plaidoyer sont diffusés par les canaux appropriés (ex. : dialogues communautaires, réunions, conférences, sites Internet, webinaires)",null,null,null,null,null,null,0,0,0]
[null,null,null,"○","La stratégie est mise en œuvre aux niveaux national et régional avec des messages appropriés sur les avantages de la CMMV pour les hommes et les femmes ",null,null,null,null,null,null,0,0,0]
[null,null,null,"○","La stratégie de plaidoyer s’appuie sur les organisations communautaires pour influencer les dirigeants politiques et communautaires",null,null,null,null,null,null,0,0,0]
[null,null,"Coordination et obligation de rendre compte"]
[null,null,"Plan opérationnel national de CMMV","Un plan opérationnel national à jour est disponible. Le pays évalue régulièrement ses besoins opérationnels par le biais de recherches et d’évaluations. Les résultats sont utilisés pour réviser et corriger les trajectoires. Le plan opérationnel prend en compte :",null,null,null,null,null,{"$f":"IFERROR(O36,\"-\")","v":"-"},null,null,null,null,{"$f":"IFERROR(ROUND(AVERAGEIF(L37:N42,\"<>0\",L37:N42),0),\"-\")","v":"-"}]
[null,null,null,"○","Capacité des équipes d’assistance technique et des partenaires de mise en œuvre",null,null,null,null,null,null,0,0,0]
[null,null,null,"○","Phases de mise à l’échelle et de durabilité",null,null,null,null,null,null,0,0,0]
[null,null,null,"○","Incorporation dans des programmes de santé connexes",null,null,null,null,null,null,0,0,0]
[null,null,null,"○","Fixation de cibles et planification",null,null,null,null,null,null,0,0,0]
[null,null,null,"○","Besoins en ressources et coût de ces ressources",null,null,null,null,null,null,0,0,0]
[null,null,null,"○","Coordination des parties prenantes",null,null,null,null,null,null,0,0,0]
[null,null,"Groupe de travail technique (GTT) pour la CMMV","Un GTT est établi aux niveaux national et infranational et contribue aux besoins programmatiques :","Un GTT est établi aux niveaux national et infranational et contribue aux besoins programmatiques :",null,null,null,null,{"$f":"IFERROR(O43,\"-\")","v":"-"},null,null,null,0,{"$f":"IFERROR(ROUND(AVERAGEIF(L44:N50,\"<>0\",L44:N50),0),\"-\")","v":"-"}]
[null,null,null,"○","Il se réunit régulièrement",null,null,null,null,null,null,0,0,0]
[null,null,null,"○","Le GTT est représentatif de toutes les parties prenantes",null,null,null,null,null,null,0,0,0]
[null,null,null,"○","Il dispose d’un plan de communication",null,null,null,null,null,null,0,0,0]
[null,null,null,"○","Les membres ont un mandat défini qui oriente le champ d’application, les activités et les objectifs",null,null,null,null,null,null,0,0,0]
[null,null,null,"○","Le GTT contribue à la mise en œuvre des plans et des réformes programmatiques et aborde des questions transversales",null,null,null,null,null,null,0,0,0]
[null,null,null,"○","Le GTT soutient la mobilisation des ressources et la coordination en développant et en cultivant des partenariats et des investissements",null,null,null,null,null,null,0,0,0]
[null,null,null,"○","Le GTT facilite le partage des enseignements avec les parties prenantes concernées",null,null,null,null,null,null,0,0,0]
[null,null,"Coordination des parties prenantes (dont le secteur traditionnel et la société civile)","Il existe une coordination forte et visible avec les parties prenantes à tous les niveaux :",null,null,null,null,null,null,null,null,null,null,{"$f":"IFERROR(ROUND(AVERAGEIF(L52:N55,\"<>0\",L52:N55),0),\"-\")","v":"-"}]
[null,null,null,"○","Une forte coordination est en place entre les parties prenantes, par le biais d’un comité formel (ex. : un GTT) qui inclut des écoles, des programmes et réseaux de jeunes, des structures de leadership traditionnelles, des secteurs du sport et des loisirs, des communautés, le secteur de l’éducation, des partenaires financiers, des partenaires de mise en œuvre et des secteurs de la santé publics et privés",null,null,null,null,{"$f":"IFERROR(O51,\"-\")","v":"-"},null,0,0,0]
[null,null,null,"○","Toutes ces parties prenantes sont identifiées dans les plans stratégiques et opérationnels et sont incluses dans les discussions programmatiques clés",null,null,null,null,null,null,0,0,0]
[null,null,null,"○","Les parties prenantes font régulièrement part de leurs réactions au programme national (ministère de la Santé) à tous les niveaux et rendent compte par le biais de mécanismes de responsabilisation (ex. : lettres de soutien, accords et protocoles d’accord entre le ministère de la Santé, le secteur traditionnel, le secteur privé et la société civile)",null,null,null,null,null,null,0,0,0]
[null,null,null,"○","Il existe un système de données national auquel toutes les parties prenantes font rapport",null,null,null,null,null,null,0,0,0]
[null,null,"Coordination avec d’autres ministères","Les responsables des programmes de CMMV s’engagent auprès d’autres ministères du gouvernement local pour mobiliser un plus grand soutien et renforcer les capacités (ex. : ministère de l’Éducation, ministère des Finances, ministère du Développement social) :",null,null,null,null,null,{"$f":"IFERROR(O56,\"-\")","v":"-"},null,null,0,null,{"$f":"IFERROR(ROUND(AVERAGEIF(L57:N62,\"<>0\",L57:N62),0),\"-\")","v":"-"}]
[null,null,null,"○","Le rôle de ces parties prenantes est clairement défini dans le plan stratégique et la théorie du changement",null,null,null,null,null,null,0,0,0]
[null,null,null,"○","Ces parties prenantes ont des champions qui plaident en faveur de la CMMV",null,null,null,null,null,null,0,0,0]
[null,null,null,"○","Ces parties prenantes sont représentées au sein du GTT CMMV et/ou du comité directeur",null,null,null,null,null,null,0,0,0]
[null,null,null,"○","Ces parties prenantes font part de leurs réactions au ministère de la Santé",null,null,null,null,null,null,0,0,0]
[null,null,null,"○","Ces parties prenantes rendent compte au ministère de la Santé par le biais de mécanismes de responsabilisation signés",null,null,null,null,null,null,0,0,0]
[null,null,null,"○","Il existe des directives relatives à l’engagement des parties prenantes qui définissent clairement la manière dont les ministères travaillent ensemble et identifient les possibilités de collaboration conjointes",null,null,null,null,null,null,0,0,0]
[null,null,"Politiques et environnement législatif"]
[null,null,"Directives nationales de mise en œuvre de la CMMV ","Des directives de mise en œuvre sont élaborées et appliquées :",null,null,null,null,null,{"$f":"IFERROR(O64,\"-\")","v":"-"},null,null,null,null,{"$f":"IFERROR(ROUND(AVERAGEIF(L65:N71,\"<>0\",L65:N71),0),\"-\")","v":"-"}]
[null,null,null,"○","Les directives comprennent des informations non cliniques (contexte, paquet de soins, consentement éclairé), des informations cliniques (procédures, techniques chirurgicales, soins postopératoires, prévention des infections) et des informations de gestion (planification du programme, suivi et évaluation, qualité, supervision)",null,null,null,null,null,null,0,0,0]
[null,null,null,"○","Des directives de budgétisation et d’allocation des ressources prenant en compte tous les éléments du programme de CMMV sont disponibles",null,null,null,null,null,null,0,0,0]
[null,null,null,"○","Les directives sont diffusées et connues aux niveaux infranationaux",null,null,null,null,null,null,0,0,0]
[null,null,null,"○","La mise en œuvre au niveau infranational suit strictement les directives, conformément aux conclusions des évaluations de la qualité",null,null,null,null,null,null,0,0,0]
[null,null,null,"○","Les directives sont alignées sur les manuels de l’OMS 2018 sur la CMMV pour les adolescents et les hommes",null,null,null,null,null,null,0,0,0]
[null,null,null,"○","Les directives de mise en œuvre tiennent compte des soins différenciés selon l’âge",null,null,null,null,null,null,0,0,0]
[null,null,null,"○","Des mesures de prévention et de contrôle de l’infection COVID-19 sont intégrées à l’ensemble des stratégies, plans et directives de prévention du VIH et de Circoncision masculine médicale volontaire",null,null,null,null,null,null,0,0,0]
[null,null,"Environnement politique favorable à la CMMV","Les politiques du programme prévoient :","Un GTT est établi aux niveaux national et infranational et contribue aux besoins programmatiques :",null,null,null,null,{"$f":"IFERROR(O72,\"-\")","v":"-"},null,0,null,null,{"$f":"IFERROR(ROUND(AVERAGEIF(L73:N76,\"<>0\",L73:N76),0),\"-\")","v":"-"}]
[null,null,null,"○","Conduite éthique dans la mise en œuvre du programme ",null,null,null,null,null,null,0,0,0]
[null,null,null,"○","Lutte contre la coercition ",null,null,null,null,null,null,0,0,0]
[null,null,null,"○","Consentement éclairé ",null,null,null,null,null,null,0,0,0]
[null,null,null,"○","Droits liés au genre qui promeuvent l’adoption de la CMMV  ",null,null,null,null,null,null,0,0,0]
[null,null,"Financement"]
[null,null,"Mobilisation des ressources","Des évaluations nationales permettent d’identifier les lacunes au niveau des ressources et sont utilisées pour élaborer des plans de mise en œuvre réalistes et chiffrés :",null,null,null,null,null,{"$f":"IFERROR(O78,\"-\")","v":"-"},null,null,null,null,{"$f":"IFERROR(ROUND(AVERAGEIF(L79:N84,\"<>0\",L79:N84),0),\"-\")","v":"-"}]
[null,null,null,"○","Les partenaires fournissent une assistance technique pour soutenir l’augmentation des revenus",null,null,null,null,null,null,0,0,0]
[null,null,null,"○","Des accords de sous-traitance et de paiement pour l’achat de services de CMMV sont en place",null,null,null,null,null,null,0,0,0]
[null,null,null,"○","Des sources de financement multiples sont identifiées et contribuent à un programme national (y compris des sources privées)",null,null,null,null,null,null,0,0,0]
[null,null,null,"○","Une proportion importante du programme de CMMV est financée au niveau national (ex. : >10 %) et il existe un financement au-delà des donateurs",null,null,null,null,null,null,0,0,0]
[null,null,null,"○","Mise en place de politiques permettant au programme de CMMV d’être financé de manière continue au niveau national",null,null,null,null,null,null,0,0,0]
[null,null,null,"○","Les budgets et plans de santé du pays incluent des activités de CMMV ",null,null,null,null,null,null,0,0,0]
[]
[]
[null,null,null,null,null,null,null,null,null,null,null,null,{"$f":"COUNTIF(O6:O84,\"-\")","v":11}]
[null,null,null,null,null,null,null,null,null,null,null,null,{"$f":"COUNTIF(O6:O84,\">0\")","v":0}]
[null,null,null,null,null,null,null,null,null,null,null,"Sheet Completion",{"$f":"M88/(M87+M88)","v":0},{"$f":"1-M89","v":1}]

{"sheet":"Mise en œuvre de programme ","index":6,"n_rows":176,"n_cols":16,"rows_kept":176,"cut":false,"hidden":false,"merged":[[157,2,164,2],[157,3,157,4],[157,9,164,9],[165,2,171,2],[165,3,165,4],[165,9,171,9],[143,2,149,2],[143,3,143,4],[143,9,149,9],[151,2,156,2],[151,3,151,4],[151,9,156,9],[133,2,138,2],[133,3,133,4],[133,9,138,9],[139,2,142,2],[139,3,139,4],[139,9,142,9],[116,2,122,2],[116,3,116,4],[116,9,122,9],[123,2,132,2],[123,3,123,4],[123,9,132,9],[106,2,111,2],[106,3,106,4],[106,9,111,9],[113,2,115,2],[113,3,113,4],[113,9,115,9],[82,2,97,2],[82,3,82,4],[82,9,97,9],[98,2,105,2],[98,3,98,4],[98,9,105,9],[70,2,73,2],[70,3,70,4],[70,9,73,9],[74,2,75,2],[76,2,80,2],[76,3,76,4],[76,9,80,9],[74,9,75,9],[63,2,65,2],[63,3,63,4],[63,9,65,9],[66,2,69,2],[66,3,66,4],[66,9,69,9],[54,2,57,2],[54,3,54,4],[54,9,57,9],[58,2,62,2],[58,3,58,4],[58,9,62,9],[43,2,48,2],[43,3,43,4],[43,9,48,9],[49,2,52,2],[49,3,49,4],[49,9,52,9],[32,2,35,2],[32,3,32,4],[32,9,35,9],[36,3,36,4],[37,2,42,2],[37,3,37,4],[37,9,42,9],[24,2,26,2],[24,3,24,4],[24,9,26,9],[27,2,31,2],[27,3,27,4],[27,9,31,9],[12,2,14,2],[12,3,12,4],[12,9,14,9],[15,2,22,2],[15,3,15,4],[15,9,22,9],[1,2,1,9],[3,3,3,4],[4,2,4,10],[5,2,11,2],[5,3,5,4],[5,9,11,9]]}
[]
[null,null,"Mise en œuvre de programme"]
[]
[null,null,"Élément","Critères",null,"S/O","Absent","Présent mais non optimal","Présent et fonctionnel","Moyenne de l’élément","Commentaires (le cas échéant)","Absent","Present","Optimal","Average","Sustainability Single Figure"]
[null,null,"Ciblage et planification"]
[null,null,"Évaluation démographique (estimation de la taille de la population et cartographie des zones présentant des besoins non satisfaits)","Des estimations de la taille de la population sont disponibles et prennent en compte l’ensemble de la population masculine non circoncise :",null,null,null,null,null,{"$f":"IFERROR(O6,\"-\")","v":"-"},null,null,null,null,{"$f":"IFERROR(ROUND(AVERAGEIF(L7:N12,\"<>0\",L7:N12),0),\"-\")","v":"-"}]
[null,null,null,"○","Des estimations de la taille de la population sont disponibles aux niveaux inranationaux",null,null,null,null,null,null,{"$f":"IF(ISBLANK(G7),0,1)","v":0},{"$f":"IF(ISBLANK(H7),0,3)","v":0},{"$f":"IF(ISBLANK(I7),0,5)","v":0}]
[null,null,null,"○","Les estimations de la taille de la population sont ventilées par cohortes d’âge",null,null,null,null,null,null,0,0,0]
[null,null,null,"○","La taille de la population des zones où les besoins non satisfaits sont estimés ",null,null,null,null,null,null,0,0,0]
[null,null,null,"○","Les estimations de la taille de la population sont à jour (< 5 ans)",null,null,null,null,null,null,{"$f":"IF(ISBLANK(G10),0,1)","v":0},{"$f":"IF(ISBLANK(H10),0,3)","v":0},{"$f":"IF(ISBLANK(I10),0,5)","v":0}]
[null,null,null,"○","Les zones cartographiées de besoins non satisfaits sont utilisées pour établir des priorités",null,null,null,null,null,null,0,0,0]
[null,null,null,"○","Les estimations de la taille de la population et les zones cartographiées des besoins non satisfaits sont utilisées dans la prise de décision et servent de base à la mise en œuvre des programmes",null,null,null,null,null,null,0,0,0]
[null,null,"Évaluation des besoins","Une évaluation des besoins (y compris les besoins en ressources humaines, les besoins en équipement, les besoins en formation, etc.) a été réalisée avec des données précises, opportunes et suffisantes : ",null,null,null,null,null,{"$f":"IFERROR(O13,\"-\")","v":"-"},null,null,null,0,{"$f":"IFERROR(ROUND(AVERAGEIF(L14:N15,\"<>0\",L14:N15),0),\"-\")","v":"-"}]
[null,null,null,"○","Un mécanisme est en place permettant de corriger les trajectoires en fonction des résultats de l’évaluation des besoins",null,null,null,null,null,null,{"$f":"IF(ISBLANK(G14),0,1)","v":0},{"$f":"IF(ISBLANK(H14),0,3)","v":0},{"$f":"IF(ISBLANK(I14),0,5)","v":0}]
[null,null,null,"○","Des réévaluations sont systématiquement pratiquées pour évaluer les améliorations du programme",null,null,null,null,null,null,0,0,0]
[null,null,"Définition de cibles","Des cibles précises et actualisées sont fixées et ventilées à tous les niveaux, du niveau national à celui de l’établissement :",null,null,null,null,null,{"$f":"IFERROR(O16,\"-\")","v":"-"},null,null,0,0,{"$f":"IFERROR(ROUND(AVERAGEIF(L17:N23,\"<>0\",L17:N23),0),\"-\")","v":"-"}]
[null,null,null,"○","Des cibles sont fixées en fonction de l’impact épidémiologique et de la disponibilité des fonds",null,null,null,null,null,null,0,0,0]
[null,null,null,"○","Des cibles sont adoptées par toutes les parties prenantes et celles-ci sont tenues responsables de la réalisation de leurs cibles",null,null,null,null,null,null,0,0,0]
[null,null,null,"○","Des cibles sont utilisées pour informer l’allocation des ressources et la planification des programmes",null,null,null,null,null,null,0,0,0]
[null,null,null,"○","Des cibles sont fixées sur la base de la population totale d’hommes non circoncis, ventilée par cohortes d’âge",null,null,null,null,null,null,0,0,0]
[null,null,null,"○","Des cibles de mise à l’échelle du programme sont examinées et fixées au moins une fois par an (ex. : nombre de CMMV réalisées, nombre de sites opérationnels, indicateurs de couverture) ",null,null,null,null,null,null,0,0,0]
[null,null,null,"○","Des cibles de durabilité sont examinées et fixées au moins une fois par an ",null,null,null,null,null,null,{"$f":"IF(ISBLANK(G22),0,1)","v":0},{"$f":"IF(ISBLANK(H22),0,3)","v":0},{"$f":"IF(ISBLANK(I22),0,5)","v":0}]
[null,null,null,"○","Le processus de fixation des cibles implique toutes les parties prenantes et le ministère à tous les niveaux",null,null,null,null,null,null,0,0,0]
[null,null,"Facteurs de prestation de services"]
[null,null,"Disponibilité des services (horaires d’ouverture)","Des services sont disponibles :","Un GTT est établi aux niveaux national et infranational et contribue aux besoins programmatiques :",null,null,null,null,{"$f":"IFERROR(O25,\"-\")","v":"-"},null,null,null,null,{"$f":"IFERROR(ROUND(AVERAGEIF(L26:N27,\"<>0\",L26:N27),0),\"-\")","v":"-"}]
[null,null,null,"○","Calendrier des services disponibles sur tous les sites ",null,null,null,null,null,null,{"$f":"IF(ISBLANK(G26),0,1)","v":0},{"$f":"IF(ISBLANK(H26),0,3)","v":0},{"$f":"IF(ISBLANK(I26),0,5)","v":0}]
[null,null,null,"○","Des activités de proximité sont disponibles pour les groupes difficiles à atteindre",null,null,null,null,null,null,0,0,0]
[null,null,"Accessibilité des services \n* Mesurée par le nombre de personnes formées par établissement","Des services sont facilement accessibles :",null,null,null,null,null,{"$f":"IFERROR(O28,\"-\")","v":"-"},null,null,null,null,{"$f":"IFERROR(ROUND(AVERAGEIF(L29:N32,\"<>0\",L29:N32),0),\"-\")","v":"-"}]
[null,null,null,"○","Les horaires d’ouverture répondent aux besoins de tous les groupes d’utilisateurs cibles",null,null,null,null,null,null,{"$f":"IF(ISBLANK(G29),0,1)","v":0},{"$f":"IF(ISBLANK(H29),0,3)","v":0},{"$f":"IF(ISBLANK(I29),0,5)","v":0}]
[null,null,null,"○","Le transport est assuré pour que les clients puissent accéder aux services ",null,null,null,null,null,null,{"$f":"IF(ISBLANK(G30),0,1)","v":0},{"$f":"IF(ISBLANK(H30),0,3)","v":0},0]
[null,null,null,"○","Un système de rendez-vous est employé avec les clients ",null,null,null,null,null,null,{"$f":"IF(ISBLANK(G31),0,1)","v":0},{"$f":"IF(ISBLANK(H31),0,3)","v":0},0]
[null,null,null,"○","Les services sont proposés dans des lieux proches de façon à améliorer la portée du programme",null,null,null,null,null,null,{"$f":"IF(ISBLANK(G32),0,1)","v":0},{"$f":"IF(ISBLANK(H32),0,3)","v":0},0]
[null,null,"Services intégrés et systématisés","Les services de CMMV sont intégrés à un ensemble complet de services de santé qui sont systématiquement proposés aux hommes des groupes d’âge ciblés :",null,null,null,null,null,{"$f":"IFERROR(O33,\"-\")","v":"-"},null,null,null,0,{"$f":"IFERROR(ROUND(AVERAGEIF(L34:N36,\"<>0\",L34:N36),0),\"-\")","v":"-"}]
[null,null,null,"○","Il existe un système efficace d’orientation des patients, qui inclut les services et les résultats de CMMV ",null,null,null,null,null,null,{"$f":"IF(ISBLANK(G34),0,1)","v":0},{"$f":"IF(ISBLANK(H34),0,3)","v":0},0]
[null,null,null,"○","La formation à la prestation de services de CMMV est étendue à l’ensemble du personnel de santé (ex. : infirmières)",null,null,null,null,null,null,{"$f":"IF(ISBLANK(G35),0,1)","v":0},{"$f":"IF(ISBLANK(H35),0,3)","v":0},0]
[null,null,null,"○","Il existe une couverture élevée et durable (80 % des hommes éligibles) de la CMMV dans tous les groupes d’âge ",null,null,null,null,null,null,{"$f":"IF(ISBLANK(G36),0,1)","v":0},{"$f":"IF(ISBLANK(H36),0,3)","v":0},0]
[null,null,"Services équitables","Des services de CMMV sont disponibles et abordables pour les groupes dont les besoins ne sont pas satisfaits",null,null,null,null,null,{"$f":"IFERROR(O37,\"-\")","v":"-"},null,{"$f":"IF(ISBLANK(G37),0,1)","v":0},{"$f":"IF(ISBLANK(H37),0,3)","v":0},0,{"$f":"IFERROR(ROUND(AVERAGEIF(L37:N37,\"<>0\",L37:N37),0),\"-\")","v":"-"}]
[null,null,"Professionnels de santé formés et habilités ","Les professionnels de santé sont formés pour fournir un ensemble complet de services au patient :",null,null,null,null,null,{"$f":"IFERROR(O38,\"-\")","v":"-"},null,null,null,0,{"$f":"IFERROR(ROUND(AVERAGEIF(L39:N43,\"<>0\",L39:N43),0),\"-\")","v":"-"}]
[null,null,null,"○","Le professionnel de santé prodigue des conseils adéquats conformément aux exigences de la prestation de services de CMMV ",null,null,null,null,null,null,0,0,0]
[null,null,null,"○","Le professionnel de santé est formé à la circoncision chirurgicale ou à la circoncision par dispositif et fournit des services de haute qualité",null,null,null,null,null,null,0,0,0]
[null,null,null,"○","Le professionnel de santé est capable d’orienter les patients vers des soins supplémentaires",null,null,null,null,null,null,0,0,0]
[null,null,null,"○","Le professionnel de santé est à jour dans toutes les accréditations nécessaires",null,null,null,null,null,null,0,0,0]
[null,null,null,"○","Des professionnels de santé formés et compétents sont dépêchés dans les établissements en fonction des besoins",null,null,null,null,null,null,0,0,0]
[null,null,"Installations, fournitures et infrastructures\n* Mesurées par des programmes d’amélioration de la qualité des services et de l’assurance qualité et l’adhésion aux politiques de gestion de la chaîne d’approvisionnement","Les installations, fournitures et équipements répondent aux exigences de l’OMS :","Un GTT est établi aux niveaux national et infranational et contribue aux besoins programmatiques :",null,null,null,null,{"$f":"IFERROR(O44,\"-\")","v":"-"},null,null,null,0,{"$f":"IFERROR(ROUND(AVERAGEIF(L45:N49,\"<>0\",L45:N49),0),\"-\")","v":"-"}]
[null,null,null,"○","L’établissement assure un bon flux de patients",null,null,null,null,null,null,{"$f":"IF(ISBLANK(G45),0,1)","v":0},0,0]
[null,null,null,"○","La salle d’opération est dûment ventilée, convenablement meublée, non encombrée, propre, avec de l’eau propre et des installations de nettoyage, propice à l’intimité audiovisuelle et le sol est constitué d’un matériau non poreux",null,null,null,null,null,null,0,0,0]
[null,null,null,"○","Tout le matériel et toutes les fournitures nécessaires à une circoncision unique, chirurgicale et/ou avec dispositif sont disponibles au début de chaque journée",null,null,null,null,null,null,0,0,0]
[null,null,null,"○","Les articles nécessaires en cas d’urgence sont disponibles à tout moment",null,null,null,null,null,null,0,0,0]
[null,null,null,"○","Les instruments sont entretenus et leur aptitude à l’emploi est garantie",null,null,null,null,null,null,0,0,0]
[null,null,"Planification du personnel de santé\n* Mesurée par des programmes d’assurance qualité et d’amélioration de la qualité des services","Une évaluation des besoins est effectuée et ses conclusions sont utilisées pour allouer les ressources humaines nécessaires :",null,null,null,null,null,{"$f":"IFERROR(O50,\"-\")","v":"-"},null,null,null,null,{"$f":"IFERROR(ROUND(AVERAGEIF(L51:N53,\"<>0\",L51:N53),0),\"-\")","v":"-"}]
[null,null,null,"○","Il existe un système d’information permettant de suivre la disponibilité du personnel de santé en termes d’effectifs ",null,null,null,null,null,null,0,0,0]
[null,null,null,"○","Un système d’information est en place pour suivre l’utilisation du personnel de santé ",null,null,null,null,null,null,{"$f":"IF(ISBLANK(G52),0,1)","v":0},{"$f":"IF(ISBLANK(H52),0,3)","v":0},{"$f":"IF(ISBLANK(I52),0,5)","v":0}]
[null,null,null,"○","Des stratégies sont en place pour minimiser les pénuries de personnel, telles que le transfert et le partage des tâches, le perfectionnement des ressources et la gestion des fluctuations saisonnières ",null,null,null,null,null,null,0,0,0]
[null,null,"Paquet de services cliniques"]
[null,null,"Soins ciblés sur le développement et adaptés à l’âge","L’ensemble du programme de CMMV est adapté au développement et des directives différenciées selon l’âge sont disponibles pour les nourrissons et les enfants, les adolescents et les hommes adultes :",null,null,null,null,null,{"$f":"IFERROR(O55,\"-\")","v":"-"},null,null,null,null,{"$f":"IFERROR(ROUND(AVERAGEIF(L56:N58,\"<>0\",L56:N58),0),\"-\")","v":"-"}]
[null,null,null,"○","La mise en œuvre est différenciée selon l’âge pour la communication ciblée et la création de la demande, l’éducation et le conseil, les méthodes de circoncision, les procédures de consentement éclairé, les commodités, les équipements et le personnel et les rapports. ",null,null,null,null,null,null,{"$f":"IF(ISBLANK(G56),0,1)","v":0},{"$f":"IF(ISBLANK(H56),0,3)","v":0},{"$f":"IF(ISBLANK(I56),0,5)","v":0}]
[null,null,null,"○","Les services sont systématiquement étendus aux garçons adolescents",null,null,null,null,null,null,{"$f":"IF(ISBLANK(G57),0,1)","v":0},{"$f":"IF(ISBLANK(H57),0,3)","v":0},{"$f":"IF(ISBLANK(I57),0,5)","v":0}]
[null,null,null,"○","Les services sont systématiquement étendus aux nouveau-nés et aux nourrissons ",null,null,null,null,null,null,0,0,0]
[null,null,"Circoncision\n* Les méthodes chirurgicales incluent la préparation de la peau, l’anesthésie locale, l’ablation complète du prépuce, la suture, le pansement de la plaie et les soins de suivi \n* Les méthodes avec dispositifs incluent la mise en place et la préparation, l’opération et l’ablation","Des méthodes de circoncision chirurgicales et/ou basées sur des dispositifs sont disponibles, et ces méthodes :","Un GTT est établi aux niveaux national et infranational et contribue aux besoins programmatiques :",null,null,null,null,{"$f":"IFERROR(O59,\"-\")","v":"-"},null,null,null,null,{"$f":"IFERROR(ROUND(AVERAGEIF(L60:N63,\"<>0\",L60:N63),0),\"-\")","v":"-"}]
[null,null,null,"○","Respectent les normes mondiales (ex. : pré-qualifiées par l’OMS)",null,null,null,null,null,null,0,0,0]
[null,null,null,"○","Sont acceptables pour la population",null,null,null,null,null,null,{"$f":"IF(ISBLANK(G61),0,1)","v":0},{"$f":"IF(ISBLANK(H61),0,3)","v":0},{"$f":"IF(ISBLANK(I61),0,5)","v":0}]
[null,null,null,"○","Sont adaptées à l’âge",null,null,null,null,null,null,0,0,0]
[null,null,null,"○","Sont largement disponibles dans tout le pays",null,null,null,null,null,null,0,0,0]
[null,null,"Promotion et fourniture de préservatifs","La promotion et la fourniture de préservatifs adaptés à l’âge sont intégrées au paquet de services cliniques de CMMV :",null,null,null,null,null,{"$f":"IFERROR(O64,\"-\")","v":"-"},null,null,null,null,{"$f":"IFERROR(ROUND(AVERAGEIF(L65:N66,\"<>0\",L65:N66),0),\"-\")","v":"-"}]
[null,null,null,"○","Le client est informé de l’utilisation correcte et systématique des préservatifs et des pratiques sexuelles sans risque ",null,null,null,null,null,null,0,0,0]
[null,null,null,"○","Le client reçoit gratuitement des préservatifs masculins et féminins",null,null,null,null,null,null,0,0,0]
[null,null,"Dépistage, conseil et traitement des infections sexuellement transmissibles (IST)","Le dépistage et le conseil en matière d’IST sont effectués :",null,null,null,null,null,{"$f":"IFERROR(O67,\"-\")","v":"-"},null,null,null,null,{"$f":"IFERROR(ROUND(AVERAGEIF(L68:N70,\"<>0\",L68:N70),0),\"-\")","v":"-"}]
[null,null,null,"○","Les clients qui ont une IST (et qui ne sont donc pas encore éligibles à la chirurgie) sont conseillés et orientés vers un traitement",null,null,null,null,null,null,0,0,0]
[null,null,null,"○","Les clients qui ont une IST (et qui ne sont donc pas encore éligibles à la chirurgie) sont mis sous traitement et reçoivent un rendez-vous pour revenir se faire circoncire ultérieurement"]
[null,null,null,"○","La notification des partenaires est faite",null,null,null,null,null,null,0,0,0]
[null,null,"Services de dépistage du VIH (SDV) et orientation vers les soins","Des SDV sont proposés en option et réalisés :","Un GTT est établi aux niveaux national et infranational et contribue aux besoins programmatiques :",null,null,null,null,{"$f":"IFERROR(O71,\"-\")","v":"-"},null,null,null,null,{"$f":"IFERROR(ROUND(AVERAGEIF(L72:N74,\"<>0\",L72:N74),0),\"-\")","v":"-"}]
[null,null,null,"○","Les clients séropositifs mais qui restent éligibles à la chirurgie sont conseillés et mis en relation avec des soins et procèdent à la circoncision",null,null,null,null,null,null,0,0,0]
[null,null,null,"○","Les clients séropositifs mais qui ne sont pas éligibles à la chirurgie sont conseillés et mis en relation avec des soins et un rendez-vous est pris pour qu’ils reviennent se faire circoncire à un stade ultérieur",null,null,null,null,null,null,0,0,0]
[null,null,null,"○","Tous les patients séropositifs reçoivent un appel/une visite de suivi pour confirmer l’initiation du traitement",null,null,null,null,null,null,0,0,0]
[null,null,"Dépistage de la tuberculose et orientation vers les soins ","○","Les clients suspectés de tuberculose sont conseillés et orientés pour confirmer le diagnostic",null,null,null,null,{"$f":"IFERROR(O75,\"-\")","v":"-"},null,{"$f":"IF(ISBLANK(G75),0,1)","v":0},{"$f":"IF(ISBLANK(H75),0,3)","v":0},{"$f":"IF(ISBLANK(I75),0,5)","v":0},{"$f":"IFERROR(ROUND(AVERAGEIF(L75:N76,\"<>0\",L75:N76),0),\"-\")","v":"-"}]
[null,null,null,"○","Les clients dont le diagnostic de tuberculose est confirmé sont conseillés et mis en relation avec des soins et un rendez-vous est pris pour qu’ils reviennent se faire circoncire à un stade ultérieur",null,null,null,null,null,null,0,0,0]
[null,null,"Dépistage de santé général (ex. : diabète, hypertension, COVID-19)","Un dépistage de santé est proposé et effectué :",null,null,null,null,null,{"$f":"IFERROR(O77,\"-\")","v":"-"},null,null,null,null,{"$f":"IFERROR(ROUND(AVERAGEIF(L78:N81,\"<>0\",L78:N81),0),\"-\")","v":"-"}]
[null,null,null,"○","Le patient est orienté vers des soins si nécessaire",null,null,null,null,null,null,0,0,0]
[null,null,null,"○","Un rendez-vous de suivi pour la circoncision est pris si le patient n’est pas éligible à ce moment-là",null,null,null,null,null,null,0,0,0]
[null,null,null,"○","Des programmes sont en place pour encourager et suivre l’utilisation du vaccin COVID-19 chez les clients CMMV",null,null,null,null,null,null,0,0,0]
[null,null,null,"○","Maintien de la messagerie et de l’accès sécurisé aux modèles de prestation de services hors établissement (ex. : communautaires, à domicile, de télésanté) pendant les pics de COVID-19 afin d’éviter toute interruption de service",null,null,null,null,null,null,0,0,0]
[null,null,"Interventions comportementales"]
[null,null,"Génération de la demande","Une stratégie de communication est en place et mise en œuvre aux niveaux national et infranational :",null,null,null,null,null,{"$f":"IFERROR(O83,\"-\")","v":"-"},null,null,null,null,{"$f":"IFERROR(ROUND(AVERAGEIF(L84:N98,\"<>0\",L84:N98),0),\"-\")","v":"-"}]
[null,null,null,"○","Les politiques, stratégies et cadres définissent clairement l’objectif, l’approche et l’orientation stratégique de la génération de la demande de CMMV",null,null,null,null,null,null,0,0,0]
[null,null,null,"○","La stratégie est intégrée à d’autres programmes de promotion de la santé et des messages relatifs à la CMMV sont inclus dans le paquet plus large de mesures de santé et de bien-être",null,null,null,null,null,null,0,0,0]
[null,null,null,"○","La génération de la demande et la communication sont prises en compte dans la théorie du changement du programme",null,null,null,null,null,null,0,0,0]
[null,null,null,"○","Les activités de génération de la demande sont chiffrées dans des plans de travail",null,null,null,null,null,null,0,0,0]
[null,null,null,"○","Les activités de génération de la demande utilisent des canaux de communication traditionnels ainsi que des approches innovantes et des canaux d’un nouveau genre",null,null,null,null,null,null,0,0,0]
[null,null,null,"○","Les activités de génération de la demande sont adaptées au contexte local et à l’âge des participants",null,null,null,null,null,null,0,0,0]
[null,null,null,"○","La génération de la demande et la communication intègrent tous les principes de l’OMS pour une communication sanitaire efficace",null,null,null,null,null,null,0,0,0]
[null,null,null,"○","Les messages clés sont harmonisés dans l’ensemble du programme et sont utilisés pour promouvoir la pratique de la CMMV, en particulier chez les groupes difficiles à atteindre",null,null,null,null,null,null,0,0,0]
[null,null,null,"○","Les messages clés sont harmonisés dans l’ensemble du programme et sont utilisés pour communiquer les avantages de la CMMV chez les femmes",null,null,null,null,null,null,{"$f":"IF(ISBLANK(G92),0,1)","v":0},{"$f":"IF(ISBLANK(H92),0,3)","v":0},{"$f":"IF(ISBLANK(I92),0,5)","v":0}]
[null,null,null,"○","Il existe un programme de formation pour la génération de la demande et la mobilisation communautaire ",null,null,null,null,null,null,{"$f":"IF(ISBLANK(G93),0,1)","v":0},{"$f":"IF(ISBLANK(H93),0,3)","v":0},{"$f":"IF(ISBLANK(I93),0,5)","v":0}]
[null,null,null,"○","Les prestataires de services sont dûment formés à la génération de la demande et à la mobilisation communautaire",null,null,null,null,null,null,0,0,0]
[null,null,null,"○","Un plan de suivi et d’évaluation est en place pour mesurer l’impact des activités de génération de la demande",null,null,null,null,null,null,0,0,0]
[null,null,null,"○","Il existe des données actualisées sur l’impact des activités de génération de la demande",null,null,null,null,null,null,0,0,0]
[null,null,null,"○","Les activités de génération de la demande s’appuient sur des messages et des documents fondés sur des données probantes et adaptés à l’âge et au segment concernés",null,null,null,null,null,null,0,0,0]
[null,null,null,"○","La diffusion des bonnes pratiques et des enseignements tirés est systématique ",null,null,null,null,null,null,0,0,0]
[null,null,"Engagement auprès de publics primaires et secondaires (chefs traditionnels / gardiens de la communauté)","Les chefs traditionnels et les gardiens de la communauté (dont les instances dirigeantes des écoles et les responsables des établissements d’enseignement) sont identifiés dans les plans et engagés :","Un GTT est établi aux niveaux national et infranational et contribue aux besoins programmatiques :",null,null,null,null,{"$f":"IFERROR(O99,\"-\")","v":"-"},null,null,null,null,{"$f":"IFERROR(ROUND(AVERAGEIF(L100:N106,\"<>0\",L100:N106),0),\"-\")","v":"-"}]
[null,null,null,"○","L’engagement est fréquent et visible au sein de la communauté",null,null,null,null,null,null,0,0,0]
[null,null,null,"○","La mobilisation sociale inclut la capacité de la base à mener des engagements communautaires",null,null,null,null,null,null,0,0,0]
[null,null,null,"○","Il existe une approche standardisée et intégrée pour s’engager auprès des chefs traditionnels / gardiens de la communauté",null,null,null,null,null,null,0,0,0]
[null,null,null,"○","Il existe des protocoles d’accord ou d’autres accords entre les chefs traditionnels / gardiens de la communauté et les exécutants / le gouvernement",null,null,null,null,null,null,0,0,0]
[null,null,null,"○","Les chefs traditionnels / gardiens de la communauté sont inclus dans les processus de prise de décision",null,null,null,null,null,null,0,0,0]
[null,null,null,"○","Les chefs traditionnels / gardiens de la communauté sont représentés dans des comités de gouvernance formels tels que le GTT",null,null,null,null,null,null,0,0,0]
[null,null,null,"○","Les chefs traditionnels / gardiens de la communauté adhèrent au programme de CMMV et sont des champions qui plaident en faveur de l’utilisation des services",null,null,null,null,null,null,0,0,0]
[null,null,"Engagement auprès de publics primaires et secondaires (filles et femmes)","Des adolescentes et des femmes sont identifiées dans les plans et engagées en tant que partenaires féminines :","Un GTT est établi aux niveaux national et infranational et contribue aux besoins programmatiques :",null,null,null,null,{"$f":"IFERROR(O107,\"-\")","v":"-"},null,null,0,null,{"$f":"IFERROR(ROUND(AVERAGEIF(L108:N112,\"<>0\",L108:N112),0),\"-\")","v":"-"}]
[null,null,null,"○","L’engagement est fréquent et intégré à d’autres services (comme les soins prénatals, les groupes de femmes, l’éducation des patients et les écoles)",null,null,null,null,null,null,0,0,0]
[null,null,null,"○","L’engagement auprès des filles et des femmes comprend la communication sur les avantages et les limites de la CMMV",null,null,null,null,null,null,0,0,0]
[null,null,null,"○","Les activités d’engagement sont corrélées à un système d’orientation et de suivi",null,null,null,null,null,null,0,0,0]
[null,null,null,"○","Des supports IEC destinés à ces publics sont disponibles",null,null,null,null,null,null,0,0,0]
[null,null,null,"○","Les mobilisateurs sociaux sont formés à la communication avec les partenaires féminines",null,null,null,null,null,null,0,0,0]
[null,null,"Suivi et évaluation"]
[null,null,"Recherches","Des recherches actualisées sont disponibles pour les pratiques de mise en œuvre, la gestion des opérations, le calcul des coûts, la qualité et l’impact :",null,null,null,null,null,{"$f":"IFERROR(O114,\"-\")","v":"-"},null,null,null,null,{"$f":"IFERROR(ROUND(AVERAGEIF(L115:N116,\"<>0\",L115:N116),0),\"-\")","v":"-"}]
[null,null,null,"○","Les résultats sont utilisés pour informer la mise en œuvre du programme et le processus de prise de décision pour le programme dans son ensemble",null,null,null,null,null,null,{"$f":"IF(ISBLANK(G115),0,1)","v":0},{"$f":"IF(ISBLANK(H115),0,3)","v":0},{"$f":"IF(ISBLANK(I115),0,5)","v":0}]
[null,null,null,"○","Les enseignements tirés et les bonnes pratiques sont développés et partagés pour informer les programmes nationaux et mondiaux",null,null,null,null,null,null,{"$f":"IF(ISBLANK(G116),0,1)","v":0},0,0]
[null,null,"Suivi de routine","Il existe des directives de suivi et d’évaluation (S&E) spécifiques au pays, qui s’inspirent des directives de l’OMS. Ces directives comprennent :","Un GTT est établi aux niveaux national et infranational et contribue aux besoins programmatiques :",null,null,null,null,{"$f":"IFERROR(O117,\"-\")","v":"-"},null,null,null,null,{"$f":"IFERROR(ROUND(AVERAGEIF(L118:N123,\"<>0\",L118:N123),0),\"-\")","v":"-"}]
[null,null,null,"○","Renforcement des capacités du personnel de S&E à inclure la CMMV dans les systèmes nationaux d’information sur la gestion de la santé",null,null,null,null,null,null,{"$f":"IF(ISBLANK(G118),0,1)","v":0},0,0]
[null,null,null,"○","L’établissement de rapports est systématique (les directives nationales incluent le S&E de la CMMV)",null,null,null,null,null,null,0,0,0]
[null,null,null,"○","Les données sont ventilées par âge",null,null,null,null,null,null,0,0,0]
[null,null,null,"○","Les données sont utilisées pour suivre les progrès et informer la mobilisation des ressources financières et techniques",null,null,null,null,null,null,0,0,0]
[null,null,null,"○","Les progrès sont documentés par un rapport annuel au niveau du pays",null,null,null,null,null,null,0,0,0]
[null,null,null,"○","Les données de suivi des patients sont disponibles pour fournir des informations précises et opportunes sur l’adoption et la portée de la CMMV",null,null,null,null,null,null,0,0,0]
[null,null,"Directives sur les flux de données et les rapports","Un système de données robuste est en place :",null,null,null,null,null,{"$f":"IFERROR(O124,\"-\")","v":"-"},null,null,null,null,{"$f":"IFERROR(ROUND(AVERAGEIF(L125:N133,\"<>0\",L125:N133),0),\"-\")","v":"-"}]
[null,null,null,"○","Directives pour l’établissement de rapports sur les flux de données qui définissent clairement les processus de flux de données ",null,null,null,null,null,null,{"$f":"IF(ISBLANK(G125),0,1)","v":0},{"$f":"IF(ISBLANK(H125),0,3)","v":0},{"$f":"IF(ISBLANK(I125),0,5)","v":0}]
[null,null,null,"○","Les évaluations de la qualité des données sont standardisées et ont lieu régulièrement (trimestriellement)",null,null,null,null,null,null,0,0,0]
[null,null,null,"○","Les résultats des évaluations de la qualité des données sont utilisés pour résoudre les problèmes liés aux données ",null,null,null,null,null,null,0,0,0]
[null,null,null,"○","Solides coordination et harmonisation des données, toutes les parties prenantes faisant rapport dans un seul système national",null,null,null,null,null,null,0,0,0]
[null,null,null,"○","Des mécanismes de responsabilisation sont en place et appliqués pour diriger les flux de données et garantir la qualité de la collecte des données ",null,null,null,null,null,null,0,0,0]
[null,null,null,"○","Les données sont diffusées aux niveaux national, provincial et local",null,null,null,null,null,null,0,0,0]
[null,null,null,"○","Les exécutants (gouvernement et partenaires) ont les moyens d’utiliser des données pour la prise de décision et la correction des trajectoires",null,null,null,null,null,null,0,0,0]
[null,null,null,"○","Tous les exécutants alimentent le système de données avec des données précises et opportunes",null,null,null,null,null,null,0,0,0]
[null,null,null,"○","Les données sont utilisées pour détecter les événements indésirables (EI), évaluer le niveau de soin, mesurer les progrès vers la réalisation des objectifs du programme et guider la prise de décision",null,null,null,null,null,null,0,0,0]
[null,null,"Système intégré de suivi des patients dans le domaine de la santé","Il existe un système de suivi des patients qui est entièrement fonctionnel et adéquat pour surveiller la performance du programme :",null,null,null,null,null,{"$f":"IFERROR(O134,\"-\")","v":"-"},null,null,null,null,{"$f":"IFERROR(ROUND(AVERAGEIF(L135:N139,\"<>0\",L135:N139),0),\"-\")","v":"-"}]
[null,null,null,"○","Différents systèmes de suivi des patients peuvent être utilisés dans un pays donné, mais ils sont harmonisés au niveau global du programme",null,null,null,null,null,null,{"$f":"IF(ISBLANK(G135),0,1)","v":0},0,0]
[null,null,null,"○","Le programme national utilise des données de suivi des patients ventilées par âge",null,null,null,null,null,null,{"$f":"IF(ISBLANK(G136),0,1)","v":0},0,0]
[null,null,null,"○","Le système de suivi des patients est capable de distinguer les informations uniques des clients en vue de dédupliquer les données",null,null,null,null,null,null,{"$f":"IF(ISBLANK(G137),0,1)","v":0},0,0]
[null,null,null,"○","Le système de suivi des patients est numérique",null,null,null,null,null,null,{"$f":"IF(ISBLANK(G138),0,1)","v":0},0,0]
[null,null,null,"○","Le système de suivi des patients est intégré au système national d’information sur la santé afin de suivre les orientations vers d’autres services",null,null,null,null,null,null,{"$f":"IF(ISBLANK(G139),0,1)","v":0},0,0]
[null,null,"Surveillance financière ","Il y a une surveillance financière active, avec suivi des dépenses et analyse économique pour explorer les gains d’efficacité et l’optimisation des ressources",null,null,null,null,null,{"$f":"IFERROR(O140,\"-\")","v":"-"},null,null,null,0,{"$f":"IFERROR(ROUND(AVERAGEIF(L141:N143,\"<>0\",L141:N143),0),\"-\")","v":"-"}]
[null,null,null,"○","Le suivi des dépenses est systématiquement effectué ",null,null,null,null,null,null,{"$f":"IF(ISBLANK(G141),0,1)","v":0},{"$f":"IF(ISBLANK(H141),0,3)","v":0},{"$f":"IF(ISBLANK(I141),0,5)","v":0}]
[null,null,null,"○","Une analyse économique liée au programme national de prévention est pratiquée ",null,null,null,null,null,null,0,0,0]
[null,null,null,"○","Les gains d’efficacité du programme sont informés par l’analyse économique du programme de prévention ",null,null,null,null,null,null,0,0,0]
[null,null,"Suivi des orientations et des liens","Des systèmes de suivi des orientations et des liens sont en place et incluent :","Un GTT est établi aux niveaux national et infranational et contribue aux besoins programmatiques :",null,null,null,null,{"$f":"IFERROR(O144,\"-\")","v":"-"},null,null,null,0,{"$f":"IFERROR(ROUND(AVERAGEIF(L145:N150,\"<>0\",L145:N150),0),\"-\")","v":"-"}]
[null,null,null,"○","Formulaires de service standard et formulaires de rapport de données pour les SDV, les services prénatals de lutte contre le VIH, les services néonatals et infantiles et d’autres services pertinents (ex. : services IST, TB)",null,null,null,null,null,null,0,0,0]
[null,null,null,"○","Un répertoire d’orientation est en place dans les établissements",null,null,null,null,null,null,0,0,0]
[null,null,null,"○","Les résultats de l’orientation sont enregistrés ",null,null,null,null,null,null,0,0,0]
[null,null,null,"○","Mécanismes de retour d’information entre les patients et les prestataires (qui orientent)",null,null,null,null,null,null,0,0,0]
[null,null,null,"○","Rapport sur les orientations dressé chaque mois pour contrôler l’efficacité du système d’orientation",null,null,null,null,null,null,0,0,0]
[null,null,null,"○","Le système d’orientation est numérique",null,null,null,null,null,null,0,0,0]
[null,null,"Qualité"]
[null,null,"Évaluations de la conformité et de la diligence raisonnable","Des évaluations de conformité et de diligence raisonnable sont menées pour tous les exécutants :",null,null,null,null,null,{"$f":"IFERROR(O152,\"-\")","v":"-"},null,null,null,null,{"$f":"IFERROR(ROUND(AVERAGEIF(L153:N157,\"<>0\",L153:N157),0),\"-\")","v":"-"}]
[null,null,null,"○","Les évaluations de conformité et de diligence raisonnable sont standardisées ",null,null,null,null,null,null,0,0,0]
[null,null,null,"○","Des évaluations de conformité et de diligence raisonnable ont lieu au moins deux fois par an",null,null,null,null,null,null,0,0,0]
[null,null,null,"○","Tous les exécutants sont tenus d’afficher leurs certificats d’évaluation de la conformité dans leurs bureaux",null,null,null,null,null,null,0,0,0]
[null,null,null,"○","Les exécutants qui n’ont pas été évalués ne sont pas autorisés à opérer",null,null,null,null,null,null,0,0,0]
[null,null,null,"○","Un plan d’action corrective est en place pour les exécutants non conformes",null,null,null,null,null,null,0,0,0]
[null,null,"Système de surveillance des événements indésirables (EI)","Un système robuste de surveillance des EI est en place :","Un GTT est établi aux niveaux national et infranational et contribue aux besoins programmatiques :",null,null,null,null,{"$f":"IFERROR(O158,\"-\")","v":"-"},null,null,null,0,{"$f":"IFERROR(ROUND(AVERAGEIF(L159:N165,\"<>0\",L159:N165),0),\"-\")","v":"-"}]
[null,null,null,"○","Il existe des définitions nationales pour la classification des EI, conformes aux normes mondiales",null,null,null,null,null,null,0,0,0]
[null,null,null,"○","La gestion des EI est standardisée dans l’ensemble du programme",null,null,null,null,null,null,0,0,0]
[null,null,null,"○","Toutes les parties prenantes établissent des rapports sur les EI conformément aux directives d’établissement de rapports propres à chaque pays",null,null,null,null,null,null,0,0,0]
[null,null,null,"○","Les rapports sur les EI établis par tous les sites sont précis",null,null,null,null,null,null,0,0,0]
[null,null,null,"○","Un retour d’information et un suivi des patients sont assurés et documentés",null,null,null,null,null,null,0,0,0]
[null,null,null,"○","Des processus d’orientation des patients sont en place pour relier ceux qui ont besoin de soins supplémentaires",null,null,null,null,null,null,0,0,0]
[null,null,null,"○","Les données sur les EI sont examinées en continu à différents niveaux",null,null,null,null,null,null,0,0,0]
[null,null,"Amélioration et assurance de la qualité","Il existe un processus et un mécanisme d’assurance qualité aux niveaux national et infranational, qui est intégré au système de santé au sens large et qui couvre le secteur traditionnel :",null,null,null,null,null,{"$f":"IFERROR(O166,\"-\")","v":"-"},null,null,null,null,{"$f":"IFERROR(ROUND(AVERAGEIF(L167:N172,\"<>0\",L167:N172),0),\"-\")","v":"-"}]
[null,null,null,"○","Des évaluations de l’assurance qualité ont lieu chaque année",null,null,null,null,null,null,0,0,0]
[null,null,null,"○","Des activités d’ACQ sont menées dans tous les sites/établissements ",null,null,null,null,null,null,0,0,0]
[null,null,null,"○","Des normes de qualité nationales sont à disposition dans tous les sites/établissements ",null,null,null,null,null,null,0,0,0]
[null,null,null,"○","Tous les partenaires respectent les normes de qualité nationales",null,null,null,null,null,null,0,0,0]
[null,null,null,"○","Les conclusions des évaluations de la qualité sont communiquées à toutes les parties prenantes et des mesures correctives appropriées sont prises",null,null,null,null,null,null,0,0,0]
[null,null,null,"○","Il existe un soutien pour l’amélioration de la qualité",null,null,null,null,null,null,0,0,0]
[]
[null,null,null,null,null,null,null,null,null,null,null,null,{"$f":"COUNTIF(O5:O172,\"-\")","v":29}]
[null,null,null,null,null,null,null,null,null,null,null,null,{"$f":"COUNTIF(O6:O172,\">0\")","v":0}]
[null,null,null,null,null,null,null,null,null,null,null,"Sheet Completion",{"$f":"M175/(M174+M175)","v":0},{"$f":"1-M176","v":1}]

{"sheet":"Résultats de programme ","index":7,"n_rows":18,"n_cols":15,"rows_kept":18,"cut":false,"hidden":false,"merged":[[9,2,9,4],[10,2,10,4],[11,2,11,4],[8,2,8,4],[1,2,1,9],[3,3,3,4],[5,2,5,4],[6,2,6,4],[7,2,7,4]]}
[]
[null,null,"Résultats de programme"]
[]
[null,null,"Élément","Critères",null,"S/O","Pas d’objectif","Objectif non atteint ou non conforme aux prévisions","Objectif atteint ou en passe de l’être","Moyenne de l’élément","Commentaires (le cas échéant)","Absent","Present","Optimal","Average"]
[null,null,"Impact",null,null,null,null,null,null,null,null,"Absent","Present","Optimal","Average"]
[null,null,"La prévalence nationale de la CM chez les hommes âgés de 15 à 29 ans se situe entre 80 et 100 % ",null,null,null,null,null,null,{"$f":"IFERROR(O6,\"-\")","v":"-"},null,{"$f":"IF(ISBLANK(G6),0,1)","v":0},{"$f":"IF(ISBLANK(H6),0,3)","v":0},{"$f":"IF(ISBLANK(I6),0,5)","v":0},{"$f":"IFERROR(IF(ISBLANK(G6),ROUND(AVERAGEIF(L6:N6,\"<>0\",L6:N6),0),L6),\"-\")","v":"-"}]
[null,null,"La prévalence nationale de la CM chez les hommes âgés de 15 à 49 ans se situe entre 80 et 100 %",null,null,null,null,null,null,"-",null,{"$f":"IF(ISBLANK(G7),0,1)","v":0},{"$f":"IF(ISBLANK(H7),0,3)","v":0},{"$f":"IF(ISBLANK(I7),0,5)","v":0},{"$f":"IFERROR(IF(ISBLANK(G7),ROUND(AVERAGEIF(L7:N7,\"<>0\",L7:N7),0),L7),\"-\")","v":"-"}]
[null,null,"Pourcentage de la cible annuelle de CMMV atteint ",null,null,null,null,null,null,"-",null,0,0,0,"-"]
[null,null,"Pourcentage d’EI sévères et modérés signalés (2 à 4 % ou selon les directives du pays)",null,null,null,null,null,null,"-",null,0,0,0,"-"]
[null,null,"Taux de suivi dans les 14 jours suivant la circoncision à un pourcentage acceptable (80 à 100 %) ",null,null,null,null,null,null,"-",null,0,0,0,"-"]
[null,null,"Pourcentage de clients testés séropositifs liés aux soins et au traitement (80 à  100 %) ",null,null,null,null,null,null,"-",null,0,0,0,"-"]
[null,null,"Variation en pourcentage du nombre de CMMV réalisées au cours des deux dernières années",null,null,null,null,null,null,"-",null,0,0,0,"-"]
[]
[]
[]
[null,null,null,null,null,null,null,null,null,null,null,null,{"$f":"COUNTIF(O6:O13,\"-\")","v":7}]
[null,null,null,null,null,null,null,null,null,null,null,null,{"$f":"COUNTIF(O6:O13,\">0\")","v":0}]
[null,null,null,null,null,null,null,null,null,null,null,"Sheet Completion",{"$f":"M17/(M16+M17)","v":0},{"$f":"1-M18","v":1}]

{"sheet":"Résumé des notes","index":8,"n_rows":56,"n_cols":10,"rows_kept":56,"cut":false,"hidden":false,"merged":[[42,3,48,3],[13,2,41,2],[13,3,15,3],[16,3,22,3],[23,3,29,3],[30,3,32,3],[33,3,38,3],[39,3,41,3],[42,2,50,2],[1,2,1,5],[2,2,12,2],[2,3,5,3],[6,3,9,3],[10,3,11,3]]}
[]
[null,null,"Résumé des notes"]
[null,null,"Gestion de \nprogramme","Leadership et défense des intérêts","Stratégie nationale de CMMV",{"$f":"'Gestion de programme '!O6","v":"-"}]
[null,null,null,null,"Champions",{"$f":"'Gestion de programme '!O13","v":"-"}]
[null,null,null,null,"Planification pour la durabilité",{"$f":"'Gestion de programme '!O19","v":"-"}]
[null,null,null,null,"Stratégie de plaidoyer et boîte à outils",{"$f":"'Gestion de programme '!O29","v":"-"}]
[null,null,null,"Coordination et obligation de rendre compte","Plan opérationnel national de CMMV",{"$f":"'Gestion de programme '!O36","v":"-"}]
[null,null,null,null,"Groupe de travail technique (GTT) pour la CMMV",{"$f":"'Gestion de programme '!O43","v":"-"}]
[null,null,null,null,"Coordination des parties prenantes (dont le secteur traditionnel et la société civile)",{"$f":"'Gestion de programme '!O51","v":"-"}]
[null,null,null,null,"Coordination avec d’autres ministères",{"$f":"'Gestion de programme '!O56","v":"-"}]
[null,null,null,"Politiques et environnement législatif","Directives nationales de mise en œuvre de la CMMV",{"$f":"'Gestion de programme '!O64","v":"-"}]
[null,null,null,null,"Environnement politique favorable à la CMMV",{"$f":"'Gestion de programme '!O72","v":"-"}]
[null,null,null,"Financement","Mobilisation des ressources",{"$f":"'Gestion de programme '!O78","v":"-"}]
[null,null,"Mise en œuvre de programme","Ciblage et planification","Évaluation démographique (estimation de la taille de la population et cartographie des zones présentant des besoins non satisfaits)",{"$f":"'Mise en œuvre de programme '!O6","v":"-"}]
[null,null,null,null,"Évaluation des besoins",{"$f":"'Mise en œuvre de programme '!O13","v":"-"}]
[null,null,null,null,"Définition de cibles",{"$f":"'Mise en œuvre de programme '!O16","v":"-"}]
[null,null,null,"Facteurs de prestation de services","Disponibilité des services (horaires d’ouverture)",{"$f":"'Mise en œuvre de programme '!O25","v":"-"}]
[null,null,null,null,"Accessibilité des services (transport)",{"$f":"'Mise en œuvre de programme '!O28","v":"-"}]
[null,null,null,null,"Services intégrés et systématisés",{"$f":"'Mise en œuvre de programme '!O33","v":"-"}]
[null,null,null,null,"Services équitables",{"$f":"'Mise en œuvre de programme '!O37","v":"-"}]
[null,null,null,null,"Professionnels de santé formés et habilités",{"$f":"'Mise en œuvre de programme '!O38","v":"-"}]
[null,null,null,null,"Installations, fournitures et infrastructures",{"$f":"'Mise en œuvre de programme '!O44","v":"-"}]
[null,null,null,null,"Planification du personnel de santé",{"$f":"'Mise en œuvre de programme '!O50","v":"-"}]
[null,null,null,"Paquet de services cliniques","Soins ciblés sur le développement et adaptés à l’âge",{"$f":"'Mise en œuvre de programme '!O55","v":"-"}]
[null,null,null,null,"Circoncision",{"$f":"'Mise en œuvre de programme '!O59","v":"-"}]
[null,null,null,null,"Promotion et fourniture de préservatifs",{"$f":"'Mise en œuvre de programme '!O64","v":"-"}]
[null,null,null,null,"Dépistage, conseil et traitement des IST",{"$f":"'Mise en œuvre de programme '!O67","v":"-"}]
[null,null,null,null,"Services de dépistage du VIH (SDV) et orientation vers les soins",{"$f":"'Mise en œuvre de programme '!O71","v":"-"}]
[null,null,null,null,"Dépistage de la tuberculose et orientation vers les soins ",{"$f":"'Mise en œuvre de programme '!O75","v":"-"}]
[null,null,null,null,"Dépistage de santé général (ex. : diabète, hypertension, COVID-19)",{"$f":"'Mise en œuvre de programme '!O77","v":"-"}]
[null,null,null,"Interventions comportementales","Génération de la demande",{"$f":"'Mise en œuvre de programme '!O83","v":"-"}]
[null,null,null,null,"Engagement auprès de publics primaires et secondaires (chefs traditionnels / gardiens de la communauté)",{"$f":"'Mise en œuvre de programme '!O99","v":"-"}]
[null,null,null,null,"Engagement auprès de publics secondaires (filles et femmes)",{"$f":"'Mise en œuvre de programme '!O107","v":"-"}]
[null,null,null,"Suivi et évaluation","Research",{"$f":"'Mise en œuvre de programme '!O114","v":"-"}]
[null,null,null,null,"Suivi de routine",{"$f":"'Mise en œuvre de programme '!O117","v":"-"}]
[null,null,null,null,"Directives sur les flux de données et les rapports",{"$f":"'Mise en œuvre de programme '!O124","v":"-"}]
[null,null,null,null,"Système intégré de suivi des patients dans le domaine de la santé",{"$f":"'Mise en œuvre de programme '!O134","v":"-"}]
[null,null,null,null,"Surveillance financière ",{"$f":"'Mise en œuvre de programme '!O140","v":"-"}]
[null,null,null,null,"Suivi des orientations et des liens",{"$f":"'Mise en œuvre de programme '!O144","v":"-"}]
[null,null,null,"Qualité","Évaluations de la conformité et de la diligence raisonnable",{"$f":"'Mise en œuvre de programme '!O152","v":"-"}]
[null,null,null,null,"Système de surveillance des événements indésirables (EI)",{"$f":"'Mise en œuvre de programme '!O158","v":"-"}]
[null,null,null,null,"Amélioration et assurance de la qualité",{"$f":"'Mise en œuvre de programme '!O166","v":"-"}]
[null,null,"Résultats de programme","Impact","La prévalence nationale de la CM chez les hommes âgés de 15 à 29 ans se situe entre 80 et 100 %",{"$f":"'Résultats de programme '!J6","v":"-"}]
[null,null,null,"6. Prestation de services différenciés","La prévalence nationale de la CM chez les hommes âgés de 15 à 49 ans se situe entre 80 et 100 %",{"$f":"'Résultats de programme '!J7","v":"-"}]
[null,null,null,null,"Pourcentage de la cible annuelle de CMMV atteint ",{"$f":"'Résultats de programme '!J8","v":"-"}]
[null,null,null,null,"Pourcentage d’EI sévères et modérés signalés (2 à 4 % ou selon les directives du pays)",{"$f":"'Résultats de programme '!J9","v":"-"}]
[null,null,null,null,"Taux de suivi dans les 14 jours suivant la circoncision à un pourcentage acceptable (80 à 100 %) ",{"$f":"'Résultats de programme '!J10","v":"-"}]
[null,null,null,null,"Pourcentage de clients testés séropositifs liés aux soins et au traitement (80 à 100 %) ",{"$f":"'Résultats de programme '!J11","v":"-"}]
[null,null,null,null,"Variation en pourcentage du nombre de CMMV réalisées au cours des deux dernières années",{"$f":"'Résultats de programme '!J12","v":"-"}]
[null,null,null,"Durabilité",null,{"$f":"'Gestion de programme '!O19","v":"-"}]
[null,null,null,"Indicateurs COVID-19 (et autres pandémies)",null,{"$f":"IF((SUM('Gestion de programme '!L71:N71)+SUM('Mise en œuvre de programme '!L80:N80)+SUM('Mise en œuvre de programme '!L81:N81))/3=0,\"-\", ROUND((SUM('Gestion de programme '!L71:N71)+SUM('Mise en œuvre de programme '!L80:N80)+SUM('Mise en œuvre de programme '!L81:N81))/3,0))","v":"-"}]
[]
[]
[null,null,null,null,null,null,null,null,{"$f":"COUNTIF(F3:F51,\"-\")","v":49}]
[null,null,null,null,null,null,null,null,{"$f":"COUNTIF(F3:F51,\">0\")","v":0}]
[null,null,null,null,null,null,null,"PSAT Completion",{"$f":"I55/(I54+I55)","v":0},{"$f":"1-I56","v":1}]

{"sheet":"Étapes suivantes","index":9,"n_rows":54,"n_cols":8,"rows_kept":54,"cut":false,"hidden":false,"merged":[[1,2,1,8],[11,2,11,3]]}
[]
[null,null,"Étapes suivantes"]
[]
[null,null,null,null,null,"Élément à traiter/améliorer","Raison de la mauvaise performance","Actions proposées (ex. : soutien requis ou actions correctives). "]
[null,null,null,null,1,{"$f":"IFERROR(INDEX('Résumé des notes'!$E$1:$E$93,SMALL(IF('Résumé des notes'!$F$1:$F$93<=$C$12,ROW('Résumé des notes'!$F$1:$F$93)),ROW(3:3))),\"\")","v":0}]
[null,null,null,null,2,{"$f":"IFERROR(INDEX('Résumé des notes'!$E$1:$E$93,SMALL(IF('Résumé des notes'!$F$1:$F$93<=$C$12,ROW('Résumé des notes'!$F$1:$F$93)),ROW(4:4))),\"\")","v":0}]
[null,null,null,null,3,{"$f":"IFERROR(INDEX('Résumé des notes'!$E$1:$E$93,SMALL(IF('Résumé des notes'!$F$1:$F$93<=$C$12,ROW('Résumé des notes'!$F$1:$F$93)),ROW(5:5))),\"\")","v":0}]
[null,null,null,null,4,{"$f":"IFERROR(INDEX('Résumé des notes'!$E$1:$E$93,SMALL(IF('Résumé des notes'!$F$1:$F$93<=$C$12,ROW('Résumé des notes'!$F$1:$F$93)),ROW(6:6))),\"\")","v":0}]
[null,null,null,null,5,{"$f":"IFERROR(INDEX('Résumé des notes'!$E$1:$E$93,SMALL(IF('Résumé des notes'!$F$1:$F$93<=$C$12,ROW('Résumé des notes'!$F$1:$F$93)),ROW(7:7))),\"\")","v":0}]
[null,null,null,null,6,{"$f":"IFERROR(INDEX('Résumé des notes'!$E$1:$E$93,SMALL(IF('Résumé des notes'!$F$1:$F$93<=$C$12,ROW('Résumé des notes'!$F$1:$F$93)),ROW(8:8))),\"\")","v":0}]
[null,null,null,null,7,{"$f":"IFERROR(INDEX('Résumé des notes'!$E$1:$E$93,SMALL(IF('Résumé des notes'!$F$1:$F$93<=$C$12,ROW('Résumé des notes'!$F$1:$F$93)),ROW(9:9))),\"\")","v":0}]
[null,null,null,null,8,{"$f":"IFERROR(INDEX('Résumé des notes'!$E$1:$E$93,SMALL(IF('Résumé des notes'!$F$1:$F$93<=$C$12,ROW('Résumé des notes'!$F$1:$F$93)),ROW(10:10))),\"\")","v":0}]
[null,null,null,null,9,{"$f":"IFERROR(INDEX('Résumé des notes'!$E$1:$E$93,SMALL(IF('Résumé des notes'!$F$1:$F$93<=$C$12,ROW('Résumé des notes'!$F$1:$F$93)),ROW(11:11))),\"\")","v":0}]
[null,null,null,null,10,{"$f":"IFERROR(INDEX('Résumé des notes'!$E$1:$E$93,SMALL(IF('Résumé des notes'!$F$1:$F$93<=$C$12,ROW('Résumé des notes'!$F$1:$F$93)),ROW(12:12))),\"\")","v":0}]
[null,null,null,null,11,{"$f":"IFERROR(INDEX('Résumé des notes'!$E$1:$E$93,SMALL(IF('Résumé des notes'!$F$1:$F$93<=$C$12,ROW('Résumé des notes'!$F$1:$F$93)),ROW(13:13))),\"\")","v":0}]
[null,null,null,null,12,{"$f":"IFERROR(INDEX('Résumé des notes'!$E$1:$E$93,SMALL(IF('Résumé des notes'!$F$1:$F$93<=$C$12,ROW('Résumé des notes'!$F$1:$F$93)),ROW(14:14))),\"\")","v":0}]
[null,null,null,null,13,{"$f":"IFERROR(INDEX('Résumé des notes'!$E$1:$E$93,SMALL(IF('Résumé des notes'!$F$1:$F$93<=$C$12,ROW('Résumé des notes'!$F$1:$F$93)),ROW(15:15))),\"\")","v":0}]
[null,null,null,null,14,{"$f":"IFERROR(INDEX('Résumé des notes'!$E$1:$E$93,SMALL(IF('Résumé des notes'!$F$1:$F$93<=$C$12,ROW('Résumé des notes'!$F$1:$F$93)),ROW(16:16))),\"\")","v":0}]
[null,null,null,null,15,{"$f":"IFERROR(INDEX('Résumé des notes'!$E$1:$E$93,SMALL(IF('Résumé des notes'!$F$1:$F$93<=$C$12,ROW('Résumé des notes'!$F$1:$F$93)),ROW(17:17))),\"\")","v":0}]
[null,null,null,null,16,{"$f":"IFERROR(INDEX('Résumé des notes'!$E$1:$E$93,SMALL(IF('Résumé des notes'!$F$1:$F$93<=$C$12,ROW('Résumé des notes'!$F$1:$F$93)),ROW(18:18))),\"\")","v":0}]
[null,null,null,null,17,{"$f":"IFERROR(INDEX('Résumé des notes'!$E$1:$E$93,SMALL(IF('Résumé des notes'!$F$1:$F$93<=$C$12,ROW('Résumé des notes'!$F$1:$F$93)),ROW(19:19))),\"\")","v":0}]
[null,null,null,null,18,{"$f":"IFERROR(INDEX('Résumé des notes'!$E$1:$E$93,SMALL(IF('Résumé des notes'!$F$1:$F$93<=$C$12,ROW('Résumé des notes'!$F$1:$F$93)),ROW(20:20))),\"\")","v":0}]
[null,null,null,null,19,{"$f":"IFERROR(INDEX('Résumé des notes'!$E$1:$E$93,SMALL(IF('Résumé des notes'!$F$1:$F$93<=$C$12,ROW('Résumé des notes'!$F$1:$F$93)),ROW(21:21))),\"\")","v":0}]
[null,null,null,null,20,{"$f":"IFERROR(INDEX('Résumé des notes'!$E$1:$E$93,SMALL(IF('Résumé des notes'!$F$1:$F$93<=$C$12,ROW('Résumé des notes'!$F$1:$F$93)),ROW(22:22))),\"\")","v":0}]
[null,null,null,null,21,{"$f":"IFERROR(INDEX('Résumé des notes'!$E$1:$E$93,SMALL(IF('Résumé des notes'!$F$1:$F$93<=$C$12,ROW('Résumé des notes'!$F$1:$F$93)),ROW(23:23))),\"\")","v":0}]
[null,null,null,null,22,{"$f":"IFERROR(INDEX('Résumé des notes'!$E$1:$E$93,SMALL(IF('Résumé des notes'!$F$1:$F$93<=$C$12,ROW('Résumé des notes'!$F$1:$F$93)),ROW(24:24))),\"\")","v":0}]
[null,null,null,null,23,{"$f":"IFERROR(INDEX('Résumé des notes'!$E$1:$E$93,SMALL(IF('Résumé des notes'!$F$1:$F$93<=$C$12,ROW('Résumé des notes'!$F$1:$F$93)),ROW(25:25))),\"\")","v":0}]
[null,null,null,null,24,{"$f":"IFERROR(INDEX('Résumé des notes'!$E$1:$E$93,SMALL(IF('Résumé des notes'!$F$1:$F$93<=$C$12,ROW('Résumé des notes'!$F$1:$F$93)),ROW(26:26))),\"\")","v":0}]
[null,null,null,null,25,{"$f":"IFERROR(INDEX('Résumé des notes'!$E$1:$E$93,SMALL(IF('Résumé des notes'!$F$1:$F$93<=$C$12,ROW('Résumé des notes'!$F$1:$F$93)),ROW(27:27))),\"\")","v":0}]
[null,null,null,null,26,{"$f":"IFERROR(INDEX('Résumé des notes'!$E$1:$E$93,SMALL(IF('Résumé des notes'!$F$1:$F$93<=$C$12,ROW('Résumé des notes'!$F$1:$F$93)),ROW(28:28))),\"\")","v":0}]
[null,null,null,null,27,{"$f":"IFERROR(INDEX('Résumé des notes'!$E$1:$E$93,SMALL(IF('Résumé des notes'!$F$1:$F$93<=$C$12,ROW('Résumé des notes'!$F$1:$F$93)),ROW(29:29))),\"\")","v":0}]
[null,null,null,null,28,{"$f":"IFERROR(INDEX('Résumé des notes'!$E$1:$E$93,SMALL(IF('Résumé des notes'!$F$1:$F$93<=$C$12,ROW('Résumé des notes'!$F$1:$F$93)),ROW(30:30))),\"\")","v":0}]
[null,null,null,null,29,{"$f":"IFERROR(INDEX('Résumé des notes'!$E$1:$E$93,SMALL(IF('Résumé des notes'!$F$1:$F$93<=$C$12,ROW('Résumé des notes'!$F$1:$F$93)),ROW(31:31))),\"\")","v":0}]
[null,null,null,null,30,{"$f":"IFERROR(INDEX('Résumé des notes'!$E$1:$E$93,SMALL(IF('Résumé des notes'!$F$1:$F$93<=$C$12,ROW('Résumé des notes'!$F$1:$F$93)),ROW(32:32))),\"\")","v":0}]
[null,null,null,null,31,{"$f":"IFERROR(INDEX('Résumé des notes'!$E$1:$E$93,SMALL(IF('Résumé des notes'!$F$1:$F$93<=$C$12,ROW('Résumé des notes'!$F$1:$F$93)),ROW(33:33))),\"\")","v":0}]
[null,null,null,null,32,{"$f":"IFERROR(INDEX('Résumé des notes'!$E$1:$E$93,SMALL(IF('Résumé des notes'!$F$1:$F$93<=$C$12,ROW('Résumé des notes'!$F$1:$F$93)),ROW(34:34))),\"\")","v":0}]
[null,null,null,null,33,{"$f":"IFERROR(INDEX('Résumé des notes'!$E$1:$E$93,SMALL(IF('Résumé des notes'!$F$1:$F$93<=$C$12,ROW('Résumé des notes'!$F$1:$F$93)),ROW(35:35))),\"\")","v":0}]
[null,null,null,null,34,{"$f":"IFERROR(INDEX('Résumé des notes'!$E$1:$E$93,SMALL(IF('Résumé des notes'!$F$1:$F$93<=$C$12,ROW('Résumé des notes'!$F$1:$F$93)),ROW(36:36))),\"\")","v":0}]
[null,null,null,null,35,{"$f":"IFERROR(INDEX('Résumé des notes'!$E$1:$E$93,SMALL(IF('Résumé des notes'!$F$1:$F$93<=$C$12,ROW('Résumé des notes'!$F$1:$F$93)),ROW(37:37))),\"\")","v":0}]
[null,null,null,null,36,{"$f":"IFERROR(INDEX('Résumé des notes'!$E$1:$E$93,SMALL(IF('Résumé des notes'!$F$1:$F$93<=$C$12,ROW('Résumé des notes'!$F$1:$F$93)),ROW(38:38))),\"\")","v":0}]
[null,null,null,null,37,{"$f":"IFERROR(INDEX('Résumé des notes'!$E$1:$E$93,SMALL(IF('Résumé des notes'!$F$1:$F$93<=$C$12,ROW('Résumé des notes'!$F$1:$F$93)),ROW(39:39))),\"\")","v":0}]
[null,null,null,null,38,{"$f":"IFERROR(INDEX('Résumé des notes'!$E$1:$E$93,SMALL(IF('Résumé des notes'!$F$1:$F$93<=$C$12,ROW('Résumé des notes'!$F$1:$F$93)),ROW(40:40))),\"\")","v":0}]
[null,null,null,null,39,{"$f":"IFERROR(INDEX('Résumé des notes'!$E$1:$E$93,SMALL(IF('Résumé des notes'!$F$1:$F$93<=$C$12,ROW('Résumé des notes'!$F$1:$F$93)),ROW(41:41))),\"\")","v":0}]
[null,null,null,null,40,{"$f":"IFERROR(INDEX('Résumé des notes'!$E$1:$E$93,SMALL(IF('Résumé des notes'!$F$1:$F$93<=$C$12,ROW('Résumé des notes'!$F$1:$F$93)),ROW(42:42))),\"\")","v":0}]
[null,null,null,null,41,{"$f":"IFERROR(INDEX('Résumé des notes'!$E$1:$E$93,SMALL(IF('Résumé des notes'!$F$1:$F$93<=$C$12,ROW('Résumé des notes'!$F$1:$F$93)),ROW(43:43))),\"\")","v":0}]
[null,null,null,null,42,{"$f":"IFERROR(INDEX('Résumé des notes'!$E$1:$E$93,SMALL(IF('Résumé des notes'!$F$1:$F$93<=$C$12,ROW('Résumé des notes'!$F$1:$F$93)),ROW(44:44))),\"\")","v":0}]
[null,null,null,null,43,{"$f":"IFERROR(INDEX('Résumé des notes'!$E$1:$E$93,SMALL(IF('Résumé des notes'!$F$1:$F$93<=$C$12,ROW('Résumé des notes'!$F$1:$F$93)),ROW(45:45))),\"\")","v":""}]
[null,null,null,null,44,{"$f":"IFERROR(INDEX('Résumé des notes'!$E$1:$E$93,SMALL(IF('Résumé des notes'!$F$1:$F$93<=$C$12,ROW('Résumé des notes'!$F$1:$F$93)),ROW(46:46))),\"\")","v":""}]
[null,null,null,null,45,{"$f":"IFERROR(INDEX('Résumé des notes'!$E$1:$E$93,SMALL(IF('Résumé des notes'!$F$1:$F$93<=$C$12,ROW('Résumé des notes'!$F$1:$F$93)),ROW(47:47))),\"\")","v":""}]
[null,null,null,null,46,{"$f":"IFERROR(INDEX('Résumé des notes'!$E$1:$E$93,SMALL(IF('Résumé des notes'!$F$1:$F$93<=$C$12,ROW('Résumé des notes'!$F$1:$F$93)),ROW(48:48))),\"\")","v":""}]
[null,null,null,null,47,{"$f":"IFERROR(INDEX('Résumé des notes'!$E$1:$E$93,SMALL(IF('Résumé des notes'!$F$1:$F$93<=$C$12,ROW('Résumé des notes'!$F$1:$F$93)),ROW(49:49))),\"\")","v":""}]
[null,null,null,null,48,{"$f":"IFERROR(INDEX('Résumé des notes'!$E$1:$E$93,SMALL(IF('Résumé des notes'!$F$1:$F$93<=$C$12,ROW('Résumé des notes'!$F$1:$F$93)),ROW(50:50))),\"\")","v":""}]
[null,null,null,null,49,{"$f":"IFERROR(INDEX('Résumé des notes'!$E$1:$E$93,SMALL(IF('Résumé des notes'!$F$1:$F$93<=$C$12,ROW('Résumé des notes'!$F$1:$F$93)),ROW(51:51))),\"\")","v":""}]
[null,null,null,null,50,{"$f":"IFERROR(INDEX('Résumé des notes'!$E$1:$E$93,SMALL(IF('Résumé des notes'!$F$1:$F$93<=$C$12,ROW('Résumé des notes'!$F$1:$F$93)),ROW(52:52))),\"\")","v":""}]

{"sheet":"Bibliographie","index":10,"n_rows":17,"n_cols":3,"rows_kept":17,"cut":false,"hidden":false,"merged":[[1,1,1,2]]}
[]
[null,"Bibliographie"]
[null,1,"A Framework for VMMC 2021 Policy Brief, WHO and UNAIDS, 2016"]
[null,2,"Joint Strategic Action Framework to Accelerate the Scale-up of VMMC for HIV Prevention in ESA 2012-2016, WHO and UNAIDS, 2012"]
[null,3,"Joint United Nations Programme on HIV/AIDS. (2020). Maintaining and prioritizing HIV prevention services in the time of COVID-19."]
[null,4,"Joint United Nations Programme on HIV/AIDS. (2020). Condoms and lubricants in the time of COVID-19. Sustaining supplies and people-centred approaches to meet the need in low- and middle-income countries."]
[null,5,"Joint United Nations Programme on HIV/AIDS. (2020). UNAIDS highlights six critical actions to put gender equality at the centre of COVID-19 responses. "]
[null,6,"Joint United Nations Programme on HIV/AIDS. (2020). Strategic Considerations for Mitigating the Impact of COVID-19 on Key-Population-Focused HIV Programs."]
[null,7,"Joint United Nations Programme on HIV/AIDS. (2020). Preventing HIV and other STIs among women and girls using contraceptive services in contexts with high HIV incidence. "]
[null,8,"Joint United Nations Programme on HIV/AIDS. (2021). Going Online: A Budgeting and Programming Aid for Virtual HIV Interventions. "]
[null,3,"Manual for MMC, Chapter 2: An opportunity for expanded services for adolescent boys and men. 2018. WHO"]
[null,4,"MMC Manual, Chapter 3: Facilities, Supplies and Infrastructure for MMC Programs. WHO, 2018"]
[null,5,"MMC Manual, Chapter 4: Recordkeeping, reporting and quality assurance. WHO, 2018"]
[null,6,"Policy Guidelines for Sustaining Medical Male Circumcision Services in Kenya. National AIDS & STI Control Program, Ministry of Health, 2018"]
[null,7,"South African National Guidelines for MMC, 2016, Department of Health for the Republic of South Africa "]
[null,8,"Sustainability Transition Implementation Plan 2019 - 2021 for VMMC. Zimbabwe Ministry pf Health & Child Care"]
[null,9,"UNAIDS (2018) VMMC Scorecard"]

{"sheet":"Acronymes","index":11,"n_rows":19,"n_cols":4,"rows_kept":19,"cut":false,"hidden":false,"merged":[[1,2,1,3]]}
[]
[null,null,"Acronymes"]
[null,null,"AJF","Adolescentes et jeunes femmes"]
[null,null,"AQ","Assurance qualité"]
[null,null,"CCCS","Communication sur le changement de comportement social"]
[null,null,"CM / CMM / CMMV","Circoncision médicale / Circoncision masculine médicale / Circoncision masculine médicale volontaire"]
[null,null,"EI","Événement indésirable"]
[null,null,"GTT","Groupe de travail technique"]
[null,null,"IEC","Information, éducation et communication"]
[null,null,"IST","Infection sexuellement transmissible"]
[null,null,"OAEP","Outil d’auto-évaluation de la prévention du VIH "]
[null,null,"OMS","Organisation mondiale de la Santé"]
[null,null,"ONUSIDA","Programme des Nations unies sur le VIH/sida"]
[null,null,"PaE","Prophylaxie avant exposition"]
[null,null,"PC","Populations clés"]
[null,null,"POP","Procédure opérationnelle permanente"]
[null,null,"S&E","Suivi et évaluation"]
[null,null,"SDV","Services de dépistage du VIH"]
[null,null,"VIH+ ","Séropositif"]